[Event "Fagernes GM-B 2019"]
[Site "Fagernes"]
[Date "2019.04.20"]
[Round "8.23"]
[White "Kazakovskiy, Valeriy"]
[Black "Levin, Felix"]
[Result "1/2-1/2"]
[ECO "E04"]
[WhiteElo "2440"]
[BlackElo "2476"]
[Annotator "ChessBase"]
[PlyCount "136"]
[EventDate "2019.04.14"]
[EventType "tourn"]
[EventCountry "NOR"]
[SourceTitle "playchess.com"]
[Source "ChessBase"]
[SourceQuality "1"]
[TimeControl "40/5400+30:1800+30"]

1. d4 {[%emt 0:00:00]} d5 {[%emt 0:00:01]} 2. c4 {[%emt 0:00:00]} e6 {[%emt 0:00:11]} 3. Nf3 {[%emt 0:00:00]} Nf6 {[%emt 0:00:09]} 4. g3 {[%emt 0:00:17]} dxc4 {[%emt 0:00:13]} 5. Bg2 {[%emt 0:00:16]} Bd7 {[%emt 0:00:11]} 6. Ne5 {[%emt 0:00:37]} Bc6 {[%emt 0:00:10]} 7. Nxc6 {[%emt 0:00:19]} Nxc6 {[%emt 0:00:06]} 8. O-O {[%emt 0:00:23]} Qd7 {[%emt 0:00:16]} 9. e3 {[%emt 0:00:14]} Rd8 {[%emt 0:00:33]} 10. Qe2 {[%emt 0:01:51]} e5 {[%emt 0:00:58]} 11. Qxc4 {[%emt 0:01:17]} exd4 {[%emt 0:00:10]} 12. exd4 {[%emt 0:00:57]} Nxd4 {[%emt 0:03:57]} 13. Nc3 {[%emt 0:07:13]} Be7 {[%emt 0:06:32]} 14. Bg5 {[%emt 0:21:37]} O-O {[%emt 0:08:20]} 15. Bxf6 {[%emt 0:13:31]} Bxf6 {[%emt 0:01:06]} 16. Nd5 {[%emt 0:00:40]} c6 {[%emt 0:04:32]} 17. Nxf6+ {[%emt 0:00:23]} gxf6 {[%emt 0:00:16]} 18. Rae1 {[%emt 0:03:57]} b6 {[%emt 0:20:27]} 19. b4 {[%emt 0:05:37]} Rfe8 {[%emt 0:03:56]} 20. Re3 {[%emt 0:04:38]} Qd6 {[%emt 0:02:56]} 21. Rfe1 {[%emt 0:02:26]} Re5 {[%emt 0:02:06]} 22. Rxe5 {[%emt 0:06:49]} fxe5 {[%emt 0:00:15]} 23. Qc1 {[%emt 0:00:42]} h6 {[%emt 0:02:24]} 24. a3 {[%emt 0:03:09]} f5 {[%emt 0:06:46]} 25. Qe3 {[%emt 0:04:49]} Re8 {[%emt 0:05:49]} 26. Rc1 {[%emt 0:02:07]} Kg7 {[%emt 0:03:13]} 27. Kh1 {[%emt 0:01:22]} c5 {[%emt 0:03:26]} 28. bxc5 {[%emt 0:01:23]} bxc5 {[%emt 0:00:02]} 29. Qc3 {[%emt 0:02:12]} Rc8 {[%emt 0:01:32]} 30. Qc4 {[%emt 0:01:18]} e4 {[%emt 0:06:56]} 31. Qa4 {[%emt 0:03:26]} Rc7 {[%emt 0:00:47]} 32. Qc4 {[%emt 0:02:33]} Qe6 {[%emt 0:00:54]} 33. Qc3 {[%emt 0:01:54]} Qb3 {[%emt 0:02:32]} 34. Qa5 {[%emt 0:00:45]} Qb6 {[%emt 0:00:26]} 35. Qc3 {[%emt 0:02:16]} Kh7 {[%emt 0:03:14]} 36. Qe3 {[%emt 0:02:26]} Qe6 {[%emt 0:06:01]} 37. Qf4 {[%emt 0:01:20]} Rc8 {[%emt 0:03:14]} 38. Bh3 {[%emt 0:01:17]} Rc6 {[%emt 0:01:58]} 39. Qb8 {[%emt 0:01:18]} Qe7 {[%emt 0:00:58]} 40. Rb1 {[%emt 0:01:44]} Rb6 {[%emt 0:01:34]} 41. Rxb6 {[%emt 0:04:55]} axb6 {[%emt 0:00:00]} 42. Qxb6 {[%emt 0:00:03]} e3 {[%emt 0:00:58]} 43. fxe3 {[%emt 0:02:08]} Qxe3 {[%emt 0:00:26]} 44. Qb7+ {[%emt 0:06:51]} Kg6 {[%emt 0:00:39]} 45. Qa6+ {[%emt 0:00:25]} Kg5 {[%emt 0:01:53]} 46. Qf1 {[%emt 0:04:07]} Qxa3 {[%emt 0:09:00]} 47. Qf4+ {[%emt 0:06:57]} Kg6 {[%emt 0:00:21]} 48. Qd6+ {[%emt 0:05:31]} Kh5 {[%emt 0:01:27]} 49. Bf1 {[%emt 0:01:09]} Qf3+ {[%emt 0:03:39]} 50. Kg1 {[%emt 0:00:05]} Qe3+ {[%emt 0:00:23]} 51. Kg2 {[%emt 0:02:20]} Qd2+ {[%emt 0:05:04]} 52. Kh3 {[%emt 0:01:09]} Nf3 {[%emt 0:04:52]} 53. Qxd2 {[%emt 0:00:29]} Nxd2 {[%emt 0:00:06]} 54. Be2+ {[%emt 0:01:09]} Kg5 {[%emt 0:00:06]} 55. Kg2 {[%emt 0:00:29]} c4 {[%emt 0:04:37]} 56. Kf2 {[%emt 0:00:35]} f4 {[%emt 0:00:49]} 57. h4+ {[%emt 0:00:29]} Kf5 {[%emt 0:00:06]} 58. g4+ {[%emt 0:00:29]} Ke4 {[%emt 0:00:37]} 59. Bd1 {[%emt 0:00:33]} c3 {[%emt 0:02:22]} 60. Bc2+ {[%emt 0:00:16]} Ke5 {[%emt 0:00:16]} 61. Ke2 {[%emt 0:00:39]} Ne4 {[%emt 0:01:06]} 62. Kf3 {[%emt 0:00:25]} Nc5 {[%emt 0:00:56]} 63. g5 {[%emt 0:00:41]} h5 {[%emt 0:00:20]} 64. Ke2 {[%emt 0:00:30]} Ne6 {[%emt 0:01:29]} 65. Kd3 {[%emt 0:00:26]} Kf5 {[%emt 0:00:41]} 66. Bd1 {[%emt 0:00:24]} Ng7 {[%emt 0:01:07]} 67. Bf3 {[%emt 0:00:21]} Ke5 {[%emt 0:00:23]} 68. Kxc3 {[%emt 0:00:07]} Nf5 {[%emt 0:00:05]} 1/2-1/2

[Event "Fagernes GM-B 2019"]
[Site "Fagernes"]
[Date "2019.04.20"]
[Round "8.25"]
[White "Greenfeld, Alon"]
[Black "Lund, Gunnar"]
[Result "1-0"]
[ECO "A55"]
[WhiteElo "2514"]
[BlackElo "2271"]
[Annotator "ChessBase"]
[PlyCount "89"]
[EventDate "2019.04.14"]
[EventType "tourn"]
[EventCountry "NOR"]
[SourceTitle "playchess.com"]
[Source "ChessBase"]
[SourceQuality "1"]
[TimeControl "40/5400+30:1800+30"]

1. d4 {[%emt 0:00:00]} d6 {[%emt 0:01:09]} 2. Nf3 {[%emt 0:00:47]} Nf6 {[%emt 0:00:18]} 3. c4 {[%emt 0:04:07]} Nbd7 {[%emt 0:00:17]} 4. g3 {[%emt 0:04:26]} e5 {[%emt 0:00:59]} 5. Bg2 {[%emt 0:00:15]} Be7 {[%emt 0:00:20]} 6. O-O {[%emt 0:00:24]} O-O {[%emt 0:00:55]} 7. Nc3 {[%emt 0:00:10]} c6 {[%emt 0:00:22]} 8. e4 {[%emt 0:00:36]} a6 {[%emt 0:00:51]} 9. a4 {[%emt 0:01:23]} a5 {[%emt 0:02:32]} 10. h3 {[%emt 0:04:39]} Re8 {[%emt 0:04:29]} 11. Be3 {[%emt 0:05:55]} exd4 {[%emt 0:02:28]} 12. Nxd4 {[%emt 0:00:09]} Bf8 {[%emt 0:04:44]} 13. Qc2 {[%emt 0:01:49]} Nc5 {[%emt 0:04:45]} 14. Rad1 {[%emt 0:04:33]} Qb6 {[%emt 0:03:44]} 15. g4 {[%emt 0:07:12]} Be6 {[%emt 0:10:51]} 16. b3 {[%emt 0:13:05]} Rad8 {[%emt 0:01:13]} 17. f4 {[%emt 0:12:26]} Bc8 {[%emt 0:10:30]} 18. g5 {[%emt 0:08:38]} Nfd7 {[%emt 0:01:27]} 19. h4 {[%emt 0:05:40]} Nb8 {[%emt 0:04:17]} 20. Bf3 {[%emt 0:01:42]} Nba6 {[%emt 0:03:25]} 21. h5 {[%emt 0:01:21]} Nb4 {[%emt 0:01:53]} 22. Qg2 {[%emt 0:04:53]} d5 {[%emt 0:02:48]} 23. cxd5 {[%emt 0:01:08]} cxd5 {[%emt 0:01:24]} 24. Ndb5 {[%emt 0:04:57]} d4 {[%emt 0:03:12]} 25. Nxd4 {[%emt 0:03:29]} Nxb3 {[%emt 0:00:39]} 26. Nf5 {[%emt 0:04:00]} Bc5 {[%emt 0:05:28]} 27. Qf2 {[%emt 0:02:47]} Bxf5 {[%emt 0:01:20]} 28. Rxd8 {[%emt 0:00:40]} Qxd8 {[%emt 0:09:14]} 29. Bxc5 {[%emt 0:00:07]} Nd3 {[%emt 0:01:19]} 30. Bb6 {[%emt 0:00:19]} Nxf2 {[%emt 0:10:27]} 31. Bxd8 {[%emt 0:00:02]} Nxe4 {[%emt 0:01:27]} 32. Bxe4 {[%emt 0:00:37]} Bxe4 {[%emt 0:00:21]} 33. Nxe4 {[%emt 0:00:53]} Rxd8 {[%emt 0:01:59]} 34. Rb1 {[%emt 0:00:56]} Nd4 {[%emt 0:02:02]} 35. Kf2 {[%emt 0:00:42]} Rb8 {[%emt 0:02:14]} 36. Rb6 {[%emt 0:00:48]} Kf8 {[%emt 0:00:59]} 37. h6 {[%emt 0:01:22]} gxh6 {[%emt 0:00:37]} 38. Rxh6 {[%emt 0:00:07]} b5 {[%emt 0:00:38]} 39. Rxh7 {[%emt 0:00:17]} Ke7 {[%emt 0:00:55]} 40. g6 {[%emt 0:01:34]} Rf8 {[%emt 0:00:53]} 41. axb5 {[%emt 0:04:44]} Nxb5 {[%emt 0:01:42]} 42. f5 {[%emt 0:01:53]} Nd6 {[%emt 0:03:49]} 43. Nxd6 {[%emt 0:02:14]} Kxd6 {[%emt 0:00:55]} 44. g7 {[%emt 0:00:09]} Rg8 {[%emt 0:00:07]} 45. f6 {[%emt 0:00:05]} 1-0

[Event "Fagernes GM-B 2019"]
[Site "Fagernes"]
[Date "2019.04.20"]
[Round "8.26"]
[White "Betaneli, Alexander"]
[Black "Kaasen, Tor Fredrik"]
[Result "0-1"]
[ECO "A11"]
[WhiteElo "2235"]
[BlackElo "2385"]
[Annotator "NA"]
[PlyCount "82"]
[EventDate "2019.04.14"]
[EventType "tourn"]
[EventCountry "NOR"]
[SourceTitle "playchess.com"]
[Source "ChessBase"]
[SourceQuality "1"]
[TimeControl "40/5400+30:1800+30"]

1. c4 {[%emt 0:00:00]} Nf6 {[%emt 0:00:08]} 2. g3 {[%emt 0:00:00]} c6 {[%emt 0:00:06]} 3. Bg2 {[%emt 0:00:07]} d5 {[%emt 0:00:08]} 4. Nf3 {[%emt 0:00:04]} dxc4 {[%emt 0:00:53]} 5. O-O {[%emt 0:00:19]} e6 {[%emt 0:00:15]} 6. a4 {[%emt 0:01:27]} Na6 {[%emt 0:01:56]} 7. Qc2 {[%emt 0:10:07]} b5 {[%emt 0:00:55]} 8. b3 {[%emt 0:05:42]} Nb4 {[%emt 0:03:57]} 9. Qb2 {[%emt 0:01:47]} cxb3 {[%emt 0:02:20]} 10. Qxb3 {[%emt 0:08:52]} Bb7 {[%emt 0:02:33]} 11. Nc3 {[%emt 0:08:56]} a6 {[%emt 0:03:28]} 12. d4 {[%emt 0:03:27]} Be7 {[%emt 0:01:48]} 13. e4 {[%emt 0:04:11]} O-O {[%emt 0:01:57]} 14. e5 {[%emt 0:05:21]} Nfd5 {[%emt 0:03:59]} 15. Ne4 {[%emt 0:00:30]} a5 {[%emt 0:06:46]} 16. Rd1 {[%emt 0:09:18]} h6 {[%emt 0:04:53]} 17. Bd2 {[%emt 0:05:27]} Ba6 {[%emt 0:01:46]} 18. Bf1 {[%emt 0:03:47]} Qb6 {[%emt 0:02:37]} 19. Rdc1 {[%emt 0:04:57]} bxa4 {[%emt 0:05:31]} 20. Qd1 {[%emt 0:00:23]} Bb5 {[%emt 0:05:59]} 21. Nc5 {[%emt 0:00:37]} Bxc5 {[%emt 0:00:43]} 22. dxc5 {[%emt 0:04:04]} Qa6 {[%emt 0:01:58]} 23. Nd4 {[%emt 0:04:20]} Bxf1 {[%emt 0:04:24]} 24. Qxf1 {[%emt 0:00:02]} Nd3 {[%emt 0:00:28]} 25. Rc2 {[%emt 0:04:36]} Nxe5 {[%emt 0:02:17]} 26. Rxa4 {[%emt 0:01:32]} Qxf1+ {[%emt 0:07:03]} 27. Kxf1 {[%emt 0:00:02]} Rfb8 {[%emt 0:10:10]} 28. Rxa5 {[%emt 0:01:19]} Rxa5 {[%emt 0:00:48]} 29. Bxa5 {[%emt 0:00:01]} Rb1+ {[%emt 0:00:22]} 30. Kg2 {[%emt 0:02:59]} Ra1 {[%emt 0:00:25]} 31. Bd2 {[%emt 0:01:25]} Ra4 {[%emt 0:00:15]} 32. Nb3 {[%emt 0:02:26]} Nd3 {[%emt 0:01:17]} 33. Kf1 {[%emt 0:03:39]} e5 {[%emt 0:01:26]} 34. Ke2 {[%emt 0:00:38]} e4 {[%emt 0:02:16]} 35. f3 {[%emt 0:01:30]} f5 {[%emt 0:00:47]} 36. fxe4 {[%emt 0:00:10]} fxe4 {[%emt 0:00:05]} 37. Be3 {[%emt 0:02:08]} Ra3 {[%emt 0:01:30]} 38. Nd4 {[%emt 0:01:49]} Nxe3 {[%emt 0:00:50]} 39. Kxe3 {[%emt 0:00:02]} Nb4+ {[%emt 0:00:06]} 40. Kxe4 {[%emt 0:00:08]} Nxc2 {[%emt 0:00:04]} 41. Nxc2 {[%emt 0:30:08]} Rc3 {[%emt 0:30:04]} 0-1

[Event "Fagernes GM-B 2019"]
[Site "Fagernes"]
[Date "2019.04.20"]
[Round "8.27"]
[White "Loberg, Jo Kristian"]
[Black "Dale, Gunnar Brandshaug"]
[Result "0-1"]
[ECO "B66"]
[WhiteElo "2045"]
[BlackElo "1903"]
[Annotator "NA"]
[PlyCount "214"]
[EventDate "2019.04.14"]
[EventType "tourn"]
[EventCountry "NOR"]
[SourceTitle "playchess.com"]
[Source "ChessBase"]
[SourceQuality "1"]
[TimeControl "40/5400+30:1800+30"]

1. e4 {[%emt 0:00:00]} c5 {[%emt 0:00:00]} 2. Nf3 {[%emt 0:00:00]} Nc6 {[%emt 0:00:00]} 3. d4 {[%emt 0:00:00]} cxd4 {[%emt 0:00:00]} 4. Nxd4 {[%emt 0:00:00]} Nf6 {[%emt 0:00:00]} 5. Nc3 {[%emt 0:00:00]} d6 {[%emt 0:00:00]} 6. Bg5 {[%emt 0:00:00]} e6 {[%emt 0:00:00]} 7. Qd2 {[%emt 0:00:00]} a6 {[%emt 0:00:00]} 8. O-O-O {[%emt 0:00:00]} h6 {[%emt 0:00:00]} 9. Bh4 {[%emt 0:00:00]} Nxe4 {[%emt 0:00:00]} 10. Nxe4 {[%emt 0:08:07]} Qxh4 {[%emt 0:00:00]} 11. f3 {[%emt 0:01:46]} d5 {[%emt 0:00:00]} 12. Nxc6 {[%emt 0:10:48]} bxc6 {[%emt 0:00:00]} 13. Qc3 {[%emt 0:01:42]} Qf4+ {[%emt 0:00:00]} 14. Kb1 {[%emt 0:03:33]} Qc7 {[%emt 0:00:00]} 15. Nc5 {[%emt 0:01:36]} Qa7 {[%emt 0:11:19]} 16. Nd3 {[%emt 0:04:14]} Qb6 {[%emt 0:09:46]} 17. g3 {[%emt 0:04:36]} Bb7 {[%emt 0:08:30]} 18. Bh3 {[%emt 0:06:59]} O-O-O {[%emt 0:04:02]} 19. Ne5 {[%emt 0:10:39]} Bb4 {[%emt 0:07:10]} 20. Qb3 {[%emt 0:03:02]} Rhf8 {[%emt 0:01:36]} 21. Nxf7 {[%emt 0:03:28]} Rxf7 {[%emt 0:00:43]} 22. Bxe6+ {[%emt 0:00:36]} Rfd7 {[%emt 0:01:03]} 23. c3 {[%emt 0:05:49]} Bc5 {[%emt 0:01:22]} 24. Qxb6 {[%emt 0:00:45]} Bxb6 {[%emt 0:00:41]} 25. Rhe1 {[%emt 0:02:49]} Kc7 {[%emt 0:02:50]} 26. Bxd7 {[%emt 0:00:37]} Kxd7 {[%emt 0:00:50]} 27. Re2 {[%emt 0:05:10]} Re8 {[%emt 0:01:04]} 28. Rxe8 {[%emt 0:02:35]} Kxe8 {[%emt 0:00:32]} 29. b4 {[%emt 0:01:17]} c5 {[%emt 0:04:10]} 30. bxc5 {[%emt 0:01:06]} Bxc5 {[%emt 0:00:43]} 31. f4 {[%emt 0:00:52]} Ke7 {[%emt 0:02:06]} 32. Kc2 {[%emt 0:01:21]} Bc6 {[%emt 0:01:24]} 33. Re1+ {[%emt 0:06:39]} Kf6 {[%emt 0:02:07]} 34. Kb2 {[%emt 0:10:01]} Kf5 {[%emt 0:03:07]} 35. Kc2 {[%emt 0:01:19]} Kf6 {[%emt 0:02:26]} 36. Kb2 {[%emt 0:01:24]} Bb5 {[%emt 0:00:43]} 37. Re5 {[%emt 0:01:50]} Bc4 {[%emt 0:01:03]} 38. Rh5 {[%emt 0:01:13]} Bd6 {[%emt 0:01:13]} 39. Rh4 {[%emt 0:01:13]} Be2 {[%emt 0:01:27]} 40. Kc2 {[%emt 0:01:41]} Kg6 {[%emt 0:05:55]} 41. Kd2 {[%emt 0:00:00]} Bc4 {[%emt 0:00:00]} 42. a4 {[%emt 0:00:00]} Bb3 {[%emt 0:00:00]} 43. Rg4+ {[%emt 0:00:00]} Kf6 {[%emt 0:00:00]} 44. f5 {[%emt 0:00:00]} Kxf5 {[%emt 0:00:00]} 45. Rxg7 {[%emt 0:00:00]} Bxa4 {[%emt 0:00:00]} 46. Rh7 {[%emt 0:00:00]} Kg5 {[%emt 0:00:00]} 47. Rg7+ {[%emt 0:00:00]} Kf6 {[%emt 0:00:00]} 48. Rh7 {[%emt 0:00:00]} Bf8 {[%emt 0:00:00]} 49. Rb7 {[%emt 0:00:00]} Bb5 {[%emt 0:00:00]} 50. Ke3 {[%emt 0:00:00]} Bc5+ {[%emt 0:00:00]} 51. Kf4 {[%emt 0:00:00]} Bd6+ {[%emt 0:00:00]} 52. Ke3 {[%emt 0:00:00]} Be5 {[%emt 0:00:00]} 53. Kd2 {[%emt 0:00:32]} Bc4 {[%emt 0:00:00]} 54. Kc2 {[%emt 0:02:34]} Kg5 {[%emt 0:00:37]} 55. Re7 {[%emt 0:03:01]} Bf6 {[%emt 0:01:19]} 56. Re8 {[%emt 0:05:37]} Kg4 {[%emt 0:02:00]} 57. Re6 {[%emt 0:01:53]} Bg5 {[%emt 0:03:38]} 58. h4 {[%emt 0:01:40]} Kf5 {[%emt 0:01:43]} 59. Re8 {[%emt 0:01:27]} Bf6 {[%emt 0:02:01]} 60. Rf8 {[%emt 0:01:43]} Kg6 {[%emt 0:01:49]} 61. Re8 {[%emt 0:02:15]} Kf7 {[%emt 0:04:43]} 62. Rc8 {[%emt 0:02:05]} Be5 {[%emt 0:01:29]} 63. g4 {[%emt 0:01:54]} Bg3 {[%emt 0:01:53]} 64. g5 {[%emt 0:01:18]} hxg5 {[%emt 0:01:56]} 65. hxg5 {[%emt 0:01:02]} Bf4 {[%emt 0:01:18]} 66. g6+ {[%emt 0:01:23]} Kxg6 {[%emt 0:01:04]} 67. Rf8 {[%emt 0:00:33]} Bd6 {[%emt 0:01:14]} 68. Rf2 {[%emt 0:03:30]} Be5 {[%emt 0:01:14]} 69. Rf3 {[%emt 0:02:09]} Bf6 {[%emt 0:00:54]} 70. Kb2 {[%emt 0:00:50]} Kf7 {[%emt 0:00:45]} 71. Rf4 {[%emt 0:01:05]} Ke6 {[%emt 0:00:50]} 72. Rf3 {[%emt 0:00:47]} Be5 {[%emt 0:00:43]} 73. Re3 {[%emt 0:00:55]} Kd6 {[%emt 0:00:43]} 74. Re1 {[%emt 0:00:40]} Bf4 {[%emt 0:00:46]} 75. Re8 {[%emt 0:00:40]} Kc6 {[%emt 0:00:57]} 76. Rf8 {[%emt 0:00:50]} Bd6 {[%emt 0:00:48]} 77. Rd8 {[%emt 0:00:49]} Bc7 {[%emt 0:00:47]} 78. Rc8 {[%emt 0:00:37]} Kb6 {[%emt 0:00:56]} 79. Ra8 {[%emt 0:00:55]} Kb5 {[%emt 0:00:58]} 80. Ra7 {[%emt 0:00:58]} Bd6 {[%emt 0:01:00]} 81. Rd7 {[%emt 0:01:03]} Bc5 {[%emt 0:01:18]} 82. Rc7 {[%emt 0:00:35]} a5 {[%emt 0:00:42]} 83. Rc8 {[%emt 0:00:49]} a4 {[%emt 0:01:38]} 84. Rb8+ {[%emt 0:00:42]} Bb6 {[%emt 0:00:52]} 85. Rb7 {[%emt 0:00:46]} Bb3 {[%emt 0:01:46]} 86. Rb8 {[%emt 0:00:38]} Kc6 {[%emt 0:01:22]} 87. Rc8+ {[%emt 0:00:35]} Kb7 {[%emt 0:01:35]} 88. Rh8 {[%emt 0:00:32]} Bc5 {[%emt 0:00:53]} 89. Rh7+ {[%emt 0:00:51]} Kc6 {[%emt 0:00:46]} 90. Rh8 {[%emt 0:00:37]} Kb5 {[%emt 0:01:02]} 91. Rh4 {[%emt 0:00:38]} Bc4 {[%emt 0:01:19]} 92. Rh8 {[%emt 0:00:34]} a3+ {[%emt 0:01:03]} 93. Kc2 {[%emt 0:00:34]} a2 {[%emt 0:01:04]} 94. Rb8+ {[%emt 0:00:40]} Kc6 {[%emt 0:02:13]} 95. Kb2 {[%emt 0:01:18]} Ba3+ {[%emt 0:00:49]} 96. Ka1 {[%emt 0:00:31]} Kd6 {[%emt 0:01:59]} 97. Rh8 {[%emt 0:00:53]} Ke5 {[%emt 0:00:43]} 98. Re8+ {[%emt 0:00:32]} Kf4 {[%emt 0:00:49]} 99. Re1 {[%emt 0:00:52]} Kf3 {[%emt 0:00:44]} 100. Re8 {[%emt 0:00:31]} Bc1 {[%emt 0:00:52]} 101. Re1 {[%emt 0:02:26]} Bd2 {[%emt 0:00:46]} 102. Rc1 {[%emt 0:00:35]} Bb3 {[%emt 0:01:23]} 103. c4 {[%emt 0:01:28]} Bxc1 {[%emt 0:00:43]} 104. cxd5 {[%emt 0:00:32]} Ke2 {[%emt 0:00:46]} 105. d6 {[%emt 0:00:33]} Kd2 {[%emt 0:00:41]} 106. d7 {[%emt 0:00:31]} Kc2 {[%emt 0:00:33]} 107. d8=Q {[%emt 0:00:32]} Bb2# {[%emt 0:29:12]} 0-1

[Event "Fagernes GM-B 2019"]
[Site "Fagernes"]
[Date "2019.04.20"]
[Round "8.30"]
[White "Sidali, Elias Hulleberg"]
[Black "Akdag, Omer Amir"]
[Result "1-0"]
[ECO "B31"]
[WhiteElo "1944"]
[BlackElo "1901"]
[Annotator "NA"]
[PlyCount "111"]
[EventDate "2019.04.14"]
[EventType "tourn"]
[EventCountry "NOR"]
[SourceTitle "playchess.com"]
[Source "ChessBase"]
[SourceQuality "1"]
[TimeControl "40/5400+30:1800+30"]

1. e4 {[%emt 0:00:00]} c5 {[%emt 0:00:00]} 2. Nf3 {[%emt 0:00:00]} Nc6 {[%emt 0:00:00]} 3. Bb5 {[%emt 0:00:00]} g6 {[%emt 0:00:00]} 4. Bxc6 {[%emt 0:00:00]} dxc6 {[%emt 0:00:00]} 5. d3 {[%emt 0:00:00]} Bg7 {[%emt 0:00:00]} 6. h3 {[%emt 0:00:00]} Nf6 {[%emt 0:00:00]} 7. O-O {[%emt 0:00:00]} Nd7 {[%emt 0:00:00]} 8. Nc3 {[%emt 0:00:00]} e5 {[%emt 0:00:00]} 9. Be3 {[%emt 0:00:00]} b6 {[%emt 0:00:00]} 10. Qd2 {[%emt 0:00:00]} h6 {[%emt 0:00:00]} 11. a3 {[%emt 0:00:00]} Nf8 {[%emt 0:00:00]} 12. b4 {[%emt 0:00:00]} f5 {[%emt 0:00:00]} 13. exf5 {[%emt 0:00:00]} gxf5 {[%emt 0:00:00]} 14. Qe1 {[%emt 0:00:00]} cxb4 {[%emt 0:05:04]} 15. Nxe5 {[%emt 0:02:51]} Qe7 {[%emt 0:09:13]} 16. Nxc6 {[%emt 0:02:57]} Qe6 {[%emt 0:08:02]} 17. Bd4 {[%emt 0:01:05]} Rg8 {[%emt 0:01:29]} 18. axb4 {[%emt 0:02:04]} Kd7 {[%emt 0:02:03]} 19. Qxe6+ {[%emt 0:02:48]} Nxe6 {[%emt 0:01:52]} 20. Bxg7 {[%emt 0:00:40]} Kxc6 {[%emt 0:00:44]} 21. Be5 {[%emt 0:01:01]} Bb7 {[%emt 0:01:02]} 22. f3 {[%emt 0:02:16]} a6 {[%emt 0:00:52]} 23. Kf2 {[%emt 0:06:36]} Rg6 {[%emt 0:01:47]} 24. b5+ {[%emt 0:01:09]} Kd7 {[%emt 0:06:39]} 25. bxa6 {[%emt 1:19:03]} Bxa6 {[%emt 0:01:03]} 26. Nd5 {[%emt 0:00:00]} Nc5 {[%emt 0:02:43]} 27. Nc7 {[%emt 0:00:00]} Ra7 {[%emt 0:01:12]} 28. Nxa6 {[%emt 0:00:00]} Rxa6 {[%emt 0:01:05]} 29. Rxa6 {[%emt 0:00:00]} Nxa6 {[%emt 0:00:33]} 30. Rb1 {[%emt 0:00:00]} Rc6 {[%emt 0:02:01]} 31. c4 {[%emt 0:00:00]} Ke6 {[%emt 0:01:11]} 32. Bd4 {[%emt 0:00:00]} Nc5 {[%emt 0:00:36]} 33. Bxc5 {[%emt 0:00:00]} bxc5 {[%emt 0:00:31]} 34. Re1+ {[%emt 0:00:00]} Kf6 {[%emt 0:57:18]} 35. Re8 {[%emt 0:00:00]} f4 {[%emt 0:00:00]} 36. Re4 {[%emt 0:00:00]} Kf5 {[%emt 0:00:00]} 37. d4 {[%emt 0:00:00]} cxd4 {[%emt 0:00:00]} 38. Rxd4 {[%emt 0:00:00]} Ke5 {[%emt 0:00:00]} 39. Re4+ {[%emt 0:00:00]} Kf5 {[%emt 0:00:00]} 40. g3 {[%emt 0:00:00]} fxg3+ {[%emt 0:00:00]} 41. Kxg3 {[%emt 0:00:00]} Rg6+ {[%emt 0:00:00]} 42. Kf2 {[%emt 0:00:00]} Rc6 {[%emt 0:00:00]} 43. Ke3 {[%emt 0:00:00]} h5 {[%emt 0:00:00]} 44. h4 {[%emt 0:00:00]} Rc5 {[%emt 0:00:00]} 45. Kd4 {[%emt 0:00:00]} Ra5 {[%emt 0:00:00]} 46. c5 {[%emt 0:00:00]} Ra3 {[%emt 0:00:00]} 47. Re3 {[%emt 0:00:00]} Ra4+ {[%emt 0:00:00]} 48. Kd5 {[%emt 0:00:00]} Rxh4 {[%emt 0:00:00]} 49. c6 {[%emt 0:00:00]} Rh1 {[%emt 0:00:00]} 50. Re4 {[%emt 0:00:00]} Rd1+ {[%emt 0:00:00]} 51. Rd4 {[%emt 0:00:00]} Rxd4+ {[%emt 0:00:00]} 52. Kxd4 {[%emt 0:00:00]} Ke6 {[%emt 0:00:00]} 53. Kc5 {[%emt 0:00:00]} h4 {[%emt 0:00:00]} 54. Kb6 {[%emt 0:00:00]} Ke5 {[%emt 0:00:00]} 55. c7 {[%emt 0:00:00]} Kf4 {[%emt 0:00:00]} 56. c8=Q {[%emt 0:00:00]} 1-0

[Event "Fagernes GM-B 2019"]
[Site "Fagernes"]
[Date "2019.04.21"]
[Round "9.21"]
[White "Nordquelle, Daniel"]
[Black "Fuglestein, Sander"]
[Result "0-1"]
[ECO "B12"]
[WhiteElo "2264"]
[BlackElo "2000"]
[Annotator "NA"]
[PlyCount "98"]
[EventDate "2019.04.14"]
[EventType "tourn"]
[EventCountry "NOR"]
[SourceTitle "playchess.com"]
[Source "ChessBase"]
[SourceQuality "1"]
[TimeControl "40/5400+30:1800+30"]

1. e4 {[%emt 0:00:00]} c6 {[%emt 0:00:00]} 2. d4 {[%emt 0:00:00]} d5 {[%emt 0:00:00]} 3. e5 {[%emt 0:00:00]} Bf5 {[%emt 0:00:00]} 4. h4 {[%emt 0:00:00]} h5 {[%emt 0:00:00]} 5. c4 {[%emt 0:00:00]} e6 {[%emt 0:00:00]} 6. Nc3 {[%emt 0:00:00]} Ne7 {[%emt 0:00:00]} 7. Nge2 {[%emt 0:00:00]} Nd7 {[%emt 0:00:00]} 8. Ng3 {[%emt 0:00:00]} Bg6 {[%emt 0:00:00]} 9. Be3 {[%emt 0:00:00]} Qb6 {[%emt 0:00:00]} 10. Qd2 {[%emt 0:00:00]} dxc4 {[%emt 0:00:00]} 11. Bxc4 {[%emt 0:00:00]} O-O-O {[%emt 0:00:00]} 12. a3 {[%emt 0:00:00]} Nd5 {[%emt 0:00:00]} 13. Bxd5 {[%emt 0:00:00]} cxd5 {[%emt 0:00:00]} 14. Nge2 {[%emt 0:00:00]} Kb8 {[%emt 0:00:00]} 15. O-O {[%emt 0:00:00]} Be7 {[%emt 0:00:00]} 16. g3 {[%emt 0:00:00]} Rc8 $15 {[%emt 0:00:00]} 17. Rfc1 {[%emt 0:00:00]} f6 {[%emt 0:06:49]} 18. exf6 {[%emt 0:00:00]} gxf6 {[%emt 0:02:42]} 19. Nf4 {[%emt 0:00:00]} Bf7 {[%emt 0:05:14]} 20. b4 {[%emt 0:00:00]} Qd8 {[%emt 0:04:31]} 21. Nd3 {[%emt 0:00:00]} Nb6 {[%emt 0:05:31]} 22. Bf4+ {[%emt 0:04:14]} Ka8 {[%emt 0:02:12]} 23. Nb2 {[%emt 0:00:58]} Qd7 {[%emt 0:06:29]} 24. Qd3 {[%emt 0:11:34]} Bd6 {[%emt 0:09:53]} 25. Bxd6 {[%emt 0:01:43]} Qxd6 {[%emt 0:00:32]} 26. Nca4 {[%emt 0:02:44]} Nxa4 {[%emt 0:07:44]} 27. Nxa4 {[%emt 0:00:38]} e5 {[%emt 0:04:56]} 28. Nc5 {[%emt 0:01:58]} e4 {[%emt 0:08:14]} 29. Qd2 {[%emt 0:16:56]} Rhg8 {[%emt 0:12:19]} 30. Nb3 {[%emt 0:05:06]} Rc4 {[%emt 0:04:44]} 31. Rxc4 {[%emt 0:07:53]} dxc4 {[%emt 0:00:31]} 32. Nc1 {[%emt 0:00:44]} Be6 {[%emt 0:06:29]} 33. Ne2 {[%emt 0:00:46]} Rd8 {[%emt 0:04:57]} 34. Nf4 {[%emt 0:00:36]} Bg4 {[%emt 0:04:41]} 35. d5 {[%emt 0:00:35]} Qe5 {[%emt 0:03:27]} 36. Rc1 {[%emt 0:00:57]} Rc8 {[%emt 0:01:47]} 37. Rc3 {[%emt 0:01:43]} Bd7 {[%emt 0:02:19]} 38. Kf1 {[%emt 0:05:16]} a6 {[%emt 0:01:07]} 39. Ke2 {[%emt 0:00:40]} Qf5 {[%emt 0:01:55]} 40. Qd4 {[%emt 0:02:54]} e3 {[%emt 0:00:54]} 41. Rxe3 {[%emt 0:35:03]} Qb1 {[%emt 0:00:00]} 42. Qc3 {[%emt 0:00:00]} Bg4+ {[%emt 0:00:00]} 43. f3 {[%emt 0:00:00]} Bf5 {[%emt 0:00:00]} 44. Nxh5 {[%emt 0:00:00]} Bd3+ {[%emt 0:00:00]} 45. Kd2 {[%emt 0:00:00]} Qf1 {[%emt 0:00:00]} 46. Rxd3 {[%emt 0:00:00]} Re8 {[%emt 0:00:00]} 47. Nf4 {[%emt 0:00:00]} cxd3 {[%emt 0:00:00]} 48. Qxd3 {[%emt 0:00:00]} Qe1+ {[%emt 0:02:46]} 49. Kc2 {[%emt 0:00:00]} Qf2+ {[%emt 0:02:28]} 0-1